Cogmind - Beta 15 @@@ ROGUE MODE // 2025.09.12 @ 12:45:45 Player: IAMTRASHMAN Result: Self-destructed Performance ------------- Evolutions (6) 3000 Regions Visited (15) 3000 Robots Destroyed (234) 1170 Value Destroyed (8341) 8341 Prototype IDs (13) 260 Alien Tech Used (0) 0 Bonus (2016) 2016 TOTAL SCORE: 17787 Bonus ------- High Alert Combat Kills 879 Follower Combat Kills 1370 Network Hubs Disabled 200 Friendly Fire -433 Cogmind --------- Core Integrity 1012/1150 Matter 160/500 Energy 74/300 System Corruption 0% Temperature Cool (9) Movement Core (2050) Ox40 Location -4/Factory Parts ------- > --- POWER (2) -------- Angular Momentum Engine > --- PROPULSION (2) --- Field Propulsion Array > --- UTILITY (12) ----- Huge Storage Unit High-capacity Matter Pod Enhanced Optical Array Advanced Targeting Computer Advanced Recoil Stabilizer Centrium Medium Armor Plating Focal Shield Improved Hacking Suite Improved Hacking Suite Improved Dynamic Insulation System > --- WEAPON (3) ------- Heavy Gauss Cannon > --- INVENTORY (25) --- Quantum Reactor Advanced Heat Sink High-capacity Battery (250) High-capacity Matter Pod (0) Structural Scanner IFF Parser Advanced Terrain Scanner Improved Particle Charger Advanced Transmission Jammer Damper Plating Improved Thermal Shield Long-range Tractor Beam Improved Recalibrator Heavy Phase Cannon Long-range Phase Cannon Long-range Phase Cannon Heavy Gauss Cannon Heavy Rocket Launcher Heavy Rocket Launcher Improved Plasma Cutter Peak State ------------ > --- POWER ------------ Angular Momentum Engine Quantum Reactor > --- PROPULSION ------- Armored Huge Wheel > --- UTILITY ---------- Improved Cooling System Huge Storage Unit Enhanced Optical Array Experimental Optical Array Advanced Targeting Computer Improved Particle Charger Centrium Medium Armor Plating Hardlight Generator Improved Hacking Suite Improved Hacking Suite Improved Dynamic Insulation System Long-range Tractor Beam > --- WEAPON ----------- Heavy Phase Cannon Long-range Phase Cannon Phasing Sabre > --- INVENTORY -------- Field Propulsion Array High-capacity Battery High-capacity Matter Pod High-capacity Matter Pod Structural Scanner IFF Parser Advanced Terrain Scanner Seismic Detector Advanced Recoil Stabilizer Improved Medium Armor Plating Damper Plating Focal Shield Improved Thermal Shield HERF Cannon Long-range Phase Cannon Mass Driver Heavy Gauss Cannon Heavy Gauss Cannon Heavy Rocket Launcher Heavy Rocket Launcher Improved Plasma Cutter [Rating: 114] Favorites ----------- Power Deuterium Engine Engine Deuterium Engine Reactor Quantum Reactor Propulsion Armored Huge Wheel Treads Light Treads Leg Aluminum Leg Wheel Armored Huge Wheel Flight Unit Field Propulsion Array Utility Huge Storage Unit Device Seismic Detector Storage Huge Storage Unit Processor Enhanced Optical Array Hackware Hacking Suite Protection Centrium Medium Armor Plating Weapon Heavy Particle Gun Energy Gun Heavy Particle Gun Energy Cannon Cooled Plasma Cannon Ballistic Gun Assault Rifle Ballistic Cannon Assault Cannon Launcher Grenade Launcher Impact Weapon Powered Hammer Slashing Weapon Katana Build | -11 -10 -10 -10 -9 -8 -7 -7 -7 -6 -6 -6 -6 -6 -5 -4 ------- Run | Yrd Mat Min Exi Min Mat Fac Was Fac Fac Ext Cet Arc Hub Fac Fac Slots Evolved 12 | . . . . . 4 2 . . 2 . . . . 2 2 Power 1 | . . . . . . . . . . . . . . . 1 Propulsion . | . . . . . . . . . . . . . . . . Utility 10 | . . . . . 3 2 . . 2 . . . . 2 1 Weapon 1 | . . . . . 1 . . . . . . . . . . Parts Attached 159 | 7 5 4 . 1 36 19 4 9 14 11 4 8 4 17 16 Power 14 | 1 . . . . 5 1 . 1 2 2 1 . . 1 . Engine 13 | 1 . . . . 5 1 . 1 2 2 . . . 1 . Core . | . . . . . . . . . . . . . . . . Reactor 1 | . . . . . . . . . . . 1 . . . . Propulsion 17 | 2 2 1 . . 6 3 . 1 . . . . . 1 1 Treads 5 | . 1 1 . . 2 1 . . . . . . . . . Leg 2 | 2 . . . . . . . . . . . . . . . Wheel 9 | . 1 . . . 4 2 . 1 . . . . . 1 . Hover . | . . . . . . . . . . . . . . . . Flight 1 | . . . . . . . . . . . . . . . 1 Utility 77 | 2 1 2 . 1 12 11 2 4 7 3 3 8 . 11 10 Device 34 | 1 1 . . . 6 4 1 1 4 . . 3 . 6 7 Storage 8 | 1 . 2 . . 1 1 1 . . 1 . . . . 1 Processor 9 | . . . . . 2 2 . . . 2 . . . 2 1 Hackware 9 | . . . . . . 1 . 2 1 . . 4 . 1 . Protection 17 | . . . . 1 3 3 . 1 2 . 3 1 . 2 1 Artifact . | . . . . . . . . . . . . . . . . Weapon 51 | 2 2 1 . . 13 4 2 3 5 6 . . 4 4 5 Energy Gun 16 | 1 . 1 . . 7 2 . 2 2 . . . 1 . . Energy Cannon 10 | . . . . . . . . . 1 1 . . 2 2 4 Ballistic Gun 7 | 1 . . . . 3 1 . . . 1 . . . 1 . Ballistic Cannon 6 | . . . . . . 1 . . 2 1 . . . 1 1 Launcher 7 | . 2 . . . 1 . 2 . . 2 . . . . . Special Weapon . | . . . . . . . . . . . . . . . . Impact Weapon 1 | . . . . . . . . 1 . . . . . . . Slashing Weapon 4 | . . . . . 2 . . . . 1 . . 1 . . Piercing Weapon . | . . . . . . . . . . . . . . . . Special Melee Weapon . | . . . . . . . . . . . . . . . . Unidentified Prototypes 10 | . . . . . 2 1 . . 2 . 1 . 1 1 2 Corrupted Parts 1 | . . . . . . . . . . . 1 . . . . System Corruption 1 | . . . . . . . . . . . 1 . . . . Parts Lost 36 | . . . . . 14 5 . . 1 . 1 2 . 4 9 Power 3 | . . . . . 2 1 . . . . . . . . . Propulsion 5 | . . . . . 3 1 . . . . . . . . 1 Utility 18 | . . . . . 5 3 . . 1 . . 1 . 3 5 Weapon 10 | . . . . . 4 . . . . . 1 1 . 1 3 Highest Loss Streak 4 | . . . . . 3 4 . . 1 . 1 2 . 3 4 To Critical Strikes 1 | . . . . . . . . . . . . . . . 1 Average Backups 18 | 5 7 9 12 17 18 23 21 20 19 20 20 19 21 20 20 Power 1 | . 1 1 1 1 2 2 2 1 . . 1 1 1 1 . Propulsion 1 | 3 3 2 2 2 1 . 1 . 1 1 1 1 1 . . Utility 10 | . 2 4 7 11 13 15 12 12 8 9 10 11 13 11 11 Weapon 5 | . . 2 2 2 2 5 6 6 8 8 8 6 6 6 6 Tool/Special . | . . . . . . . . . . . . . . . . Unused Backups 26 | . 2 1 . . 3 8 . 2 2 1 . . . 1 6 Power 1 | . . . . . 1 . . . . . . . . . . Propulsion 2 | . . . . . 1 . . 1 . . . . . . . Utility 17 | . 1 1 . . 1 5 . 1 2 1 . . . 1 4 Weapon 5 | . 1 . . . . 3 . . . . . . . . 1 Tool/Special 1 | . . . . . . . . . . . . . . . 1 Average Slot Usage (%) 93 | . 100 100 100 100 92 97 100 92 89 88 90 92 93 93 89 Engine 6 | . 14 14 14 14 8 5 7 7 5 5 1 . 2 . 3 Reactor 1 | . . . . . . . . . . . 4 6 3 4 4 Treads 5 | . 5 20 28 28 3 . . . . . . . . . . Wheel 6 | . 5 7 . . 12 13 15 7 5 6 6 6 6 5 4 Device 16 | . 14 14 14 13 19 20 22 7 14 11 . 11 20 22 25 Storage 8 | . 14 14 14 14 9 7 14 15 6 6 11 6 6 5 5 Processor 4 | . . . . . 7 8 7 2 . 1 13 7 6 10 10 Hackware 11 | . . . . . . 3 7 19 26 24 20 20 20 15 10 Protection 6 | . . . . . 6 11 1 6 8 10 12 13 6 7 9 Energy Gun 6 | . 13 13 14 5 16 15 . 9 5 4 4 1 . . . Energy Cannon 4 | . . . . . . . . . 2 6 10 13 10 9 9 Ballistic Gun 2 | . 13 13 14 5 2 . . 1 . . . . . . . Ballistic Cannon 1 | . . . . . . . . 3 3 4 . 4 3 1 2 Launcher 2 | . . 1 . 17 1 . 13 . . . 2 . . . . Slashing Weapon 2 | . . . . . 5 6 7 6 . . . . 4 4 2 Peak Build Rating 114 | 9 9 10 11 11 34 42 38 46 68 72 82 91 84 94 114 Average Rating 51 | 7 7 8 10 10 24 38 37 43 55 63 76 85 81 90 98 On Entrance 41 | . 9 7 10 11 11 34 34 38 46 59 67 76 84 83 91 Naked Turns . | . . . . . . . . . . . . . . . . Heaviest Build 172 | 15 15 51 51 54 143 107 106 117 133 142 140 147 141 158 172 Greatest Support 40 | 20 20 40 40 40 40 32 32 32 28 28 28 28 28 28 28 Greatest Overweight (x) 10 | . . 1 1 1 8 6 3 4 4 5 4 5 5 5 10 Average Overweight (x) 3 | . . . 1 1 1 3 3 3 3 4 4 4 4 4 5 Largest Inventory Capacity 25 | 8 8 20 20 20 25 25 25 25 25 25 25 25 25 25 25 Average Capacity 22 | 7 8 12 20 20 21 25 25 25 25 25 25 25 25 25 25 Most Carried 25 | 8 8 11 16 19 25 25 25 25 25 25 25 25 25 25 25 Average Carried 21 | 5 7 9 12 18 19 24 24 24 23 24 24 23 25 24 24 Final Capacity 25 | 8 8 20 20 20 25 25 25 25 25 25 25 25 25 25 25 Final Carried 25 | 8 8 10 16 19 25 23 25 25 25 25 25 25 25 25 23 Class Distribution -------------------- 27% | Mutant 26% | Hacker-Mutant 15% | Scavenger-Mutant 12% | Hacker-Tank 8% | Scavenger-Tank 3% | Scavenger-Gunner Dominant Class ---------------- Mutant | -10/Materials Mutant | -10/Mines Mutant | -10/Exiles Mutant | -9/Mines Scavenger-Tank | -8/Materials Scavenger-Mutant | -7/Factory Scavenger-Mutant | -7/Waste Hacker-Mutant | -7/Factory Hacker-Mutant | -6/Factory Hacker-Tank | -6/Extension Hacker-Tank | -6/Cetus Hacker-Tank | -6/Archives Hacker-Mutant | -6/Hub_04(d) Hacker-Mutant | -5/Factory Scavenger-Mutant | -4/Factory Resources | -11 -10 -10 -10 -9 -8 -7 -7 -7 -6 -6 -6 -6 -6 -5 -4 ----------- Run | Yrd Mat Min Exi Min Mat Fac Was Fac Fac Ext Cet Arc Hub Fac Fac Matter Collected 6257 | 327 39 209 30 166 883 310 684 103 425 872 127 229 64 867 922 Remotely 1076 | . . . . . . . 684 . . . . . . 75 317 Salvage Created 10106 | 181 61 63 . 381 2110 893 1396 99 564 1011 372 606 274 1044 1051 Parts 421 | 15 4 3 . 26 108 36 7 7 13 37 16 28 19 62 40 Haulers Intercepted 7 | . . . . . 4 . . . 1 . . . . . 2 Recyclers Shooed 15 | . 1 . . 4 3 1 . . . 3 . . . 3 . Parts Field Recycled . | . . . . . . . . . . . . . . . . Retrieved Matter . | . . . . . . . . . . . . . . . . Parts Self-Destructed . | . . . . . . . . . . . . . . . . Prevented . | . . . . . . . . . . . . . . . . Kills | -11 -10 -10 -10 -9 -8 -7 -7 -7 -6 -6 -6 -6 -6 -5 -4 ------- Run | Yrd Mat Min Exi Min Mat Fac Was Fac Fac Ext Cet Arc Hub Fac Fac Combat Hostiles Destroyed 137 | . 2 2 . 12 34 8 6 4 7 12 4 4 2 18 22 Melee 6 | . . . . . 6 . . . . . . . . . . Guns 29 | . . . . 2 17 7 . 1 2 . . . . . . Cannons 29 | . . . . . . . . 1 5 4 . 4 2 2 11 AOE 63 | . 2 2 . 10 10 . 6 2 . 5 2 . . 14 10 Classes Destroyed 20 | 3 2 . . 1 6 2 1 . . 3 . . 1 1 . Worker 17 | 1 . . . . 6 1 . 1 . 1 . . 4 2 1 Builder 14 | . . . . . 5 1 . . 1 2 . . . 4 1 Tunneler 9 | 4 . . . 1 1 . . . . 1 . . 1 1 . Hauler 7 | . . . . . 4 . . . 1 . . . . . 2 Recycler 18 | 1 . . . 3 6 4 . . 1 1 . . . 2 . Mechanic 2 | . . . . . 1 . . . . . . . . 1 . Operator 15 | . 1 . . . 1 1 . . . 1 . 9 2 . . Watcher 10 | . . . . . . 4 . . 1 . 2 . . 3 . Swarmer 28 | . . . . 8 8 . . 3 . . . . . 4 5 Saboteur 1 | . . . . . . . . . . . . . . 1 . Grunt 48 | . 2 2 . 4 15 3 . . 4 3 . . . 7 8 Brawler 3 | . . . . . 3 . . . . . . . . . . Duelist 1 | . . . . . . . . . . 1 . . . . . Sentry 20 | . . . . . 6 2 . 1 2 1 . 4 1 2 1 Demolisher 1 | . . . . . . . . . . 1 . . . . . Specialist 3 | . . . . . . . . . . 1 . . . . 2 Hunter 8 | . . . . . 2 1 . . . 3 . . . . 2 Programmer 12 | . . . . . . 2 . . 1 1 . . . 4 4 Behemoth 1 | . . . . . . . . . . . . . 1 . . Compactor 6 | . . . . . . . 6 . . . . . . . . Cetus Guard 4 | . . . . . . . . . . . 4 . . . . Thug 1 | . . . . . . . 1 . . . . . . . . Butcher 3 | . . . . . . . . . . 3 . . . . . Guerrilla 2 | . . . . . . . . . . 2 . . . . . Best Kill Streak 13 | 3 3 2 . 4 13 2 4 3 3 4 5 3 6 7 6 Combat Bots Only 7 | . 2 2 . 4 7 2 4 3 3 4 4 1 1 6 5 Max Kills in Single Turn 6 | 1 1 1 . 4 2 1 2 2 1 6 2 1 5 3 2 Gunslinging 1 | . . . . . 1 . . . . . . . . . . Exploded 4 | . 1 1 . 4 2 . 1 2 . 3 2 . . 2 2 Melee 1 | . . . . . 1 . . . . . . . . . . Uniques/NPCs Destroyed . | . . . . . . . . . . . . . . . . Combat | -11 -10 -10 -10 -9 -8 -7 -7 -7 -6 -6 -6 -6 -6 -5 -4 -------- Run | Yrd Mat Min Exi Min Mat Fac Was Fac Fac Ext Cet Arc Hub Fac Fac Hostile Shots Fired 1126 | . 5 2 . 42 141 228 . 61 131 81 16 22 31 71 295 Missed 394 | . 1 1 . 16 31 82 . 29 52 24 8 7 10 19 114 Hits 732 | . 4 1 . 26 110 146 . 32 79 57 8 15 21 52 181 Melee 4 | . . . . . 2 . . . 2 . . . . . . Projectile 728 | . 4 1 . 26 108 146 . 32 77 57 8 15 21 52 181 AOE 4 | . . . . . . . . . . 4 . . . . . Critical Strikes 23 | . . . . . 3 . . . 5 3 1 1 1 3 6 Damage Taken 9530 | . 65 32 . 340 1800 1282 36 151 821 1051 241 320 164 1029 2198 Core 1010 | . 8 7 . 48 362 181 6 14 64 106 23 . 16 37 138 Absorbed by Shields 949 | . . . . . . . . 80 196 293 . 46 122 100 112 Ignored by Resistances 362 | . . . . . . . . . . . . . . . 362 Regen/Repaired (Parts) 1187 | . . . . . 475 . . . 626 . . . . 66 20 Core Remaining (%) 75 | 100 . . . 74 34 . . 71 . . . . 75 96 . Volleys Fired 530 | 19 12 2 . 27 85 64 21 10 44 34 9 69 14 49 71 Largest 3 | 2 2 2 . 2 3 3 2 2 2 3 3 3 3 3 3 Hottest 261 | 60 60 60 . 83 175 165 78 92 97 170 170 170 165 255 261 Shots Fired 998 | 26 16 4 . 49 188 132 42 19 83 74 17 90 26 88 144 Gun 434 | 26 12 . . 35 174 132 . 9 24 17 1 4 . . . Cannon 437 | . . . . . . . . 9 59 44 7 86 26 76 130 Launcher 127 | . 4 4 . 14 14 . 42 1 . 13 9 . . 12 14 Special . | . . . . . . . . . . . . . . . . Kinetic 237 | 19 10 . . 20 21 5 . 10 48 15 . 7 10 11 61 Thermal 499 | . . . . 15 153 127 . . 11 21 6 65 13 47 41 Explosive 107 | . 4 4 . 14 14 . 42 1 . 2 . . . 12 14 Electromagnetic 155 | 7 2 . . . . . . 8 24 36 11 18 3 18 28 Robot Hit Streak 18 | 6 4 . . 9 13 18 9 5 9 11 . 8 7 12 10 Robot Miss Streak 6 | 1 6 . . 2 3 5 1 2 4 3 . 5 3 2 3 Penetration Max 1 | . . . . . . . . . . . . . . . 1 Secondary Targets 4 | . . . . 1 3 . . . . . . . . . . Max Gunslinging Chain 1 | . . . . 1 1 . . . . . . . . . . Shots Hit Robots 642 | 19 7 . . 24 145 89 24 13 59 50 . 54 14 59 85 Core Hits 413 | 7 4 2 . 20 88 35 15 7 31 45 14 33 22 37 53 Critical Kills 2 | . . . . . . . . . . . . . . 2 . Critical Parts Destroyed 1 | . . . . . . . . . . 1 . . . . . Critical Strikes 29 | . . . . . 10 5 . 1 1 1 . . 1 3 7 Burn 9 | . . . . . 6 3 . . . . . . . . . Meltdown 2 | . . . . . . . . . . . . . . 2 . Blast 9 | . . . . . . . . . 1 . . . 1 1 6 Corrupt 2 | . . . . . . . . 1 . . . . . . 1 Smash 1 | . . . . . . . . . . 1 . . . . . Sever 6 | . . . . . 4 2 . . . . . . . . . Melee Attacks 75 | . . . . . 36 12 . 3 2 4 . . 2 13 3 Impact 6 | . . . . . . . . . 2 4 . . . . . Slashing 69 | . . . . . 36 12 . 3 . . . . 2 13 3 Piercing . | . . . . . . . . . . . . . . . . Sneak Attacks 19 | . . . . . 7 2 . . 2 3 . . . 5 . Combat Hostiles . | . . . . . . . . . . . . . . . . Follow-up Attacks 3 | . . . . . 3 . . . . . . . . . . Damage Inflicted 29348 | 278 234 98 . 880 4682 1937 3681 443 1718 3161 922 1770 965 4272 4307 Guns 5108 | 246 67 . . 353 2145 1622 . 112 269 231 21 42 . . . Cannons 9079 | . . . . . . . . 139 1157 959 25 1653 383 1758 3005 Explosions 12666 | 32 164 98 . 484 1409 . 3681 192 93 1697 876 75 551 2012 1302 Melee 2447 | . . . . . 1126 315 . . 199 274 . . 31 502 . Ramming 48 | . 3 . . 43 2 . . . . . . . . . . Kinetic 4219 | 174 49 . . 199 155 36 . 151 900 313 . 164 232 233 1613 Thermal 9106 | 32 23 . . 154 1990 1586 . . 257 1144 368 1260 99 1292 901 Explosive 9258 | . 141 98 . 484 1409 . 3681 192 . 218 . . . 1733 1302 Electromagnetic 4270 | 72 18 . . . . . . 100 362 1212 554 346 603 512 491 Impact 473 | . . . . . . . . . 199 274 . . . . . Slashing 1974 | . . . . . 1126 315 . . . . . . 31 502 . Piercing . | . . . . . . . . . . . . . . . . Highest Corruption 23 | . . . . . . 4 23 23 6 6 8 8 1 2 . Average Corruption 6 | . . . . . . 3 12 23 2 6 6 6 1 1 . Corruption Purged 12 | . . . . . . . . . . . . 8 . 4 . Corruption Blocked . | . . . . . . . . . . . . . . . . Effects 116 | . . . . . . 11 10 22 15 39 8 10 . 1 . Message Errors 21 | . . . . . . 3 1 4 5 4 1 3 . . . Matter Fused 28 | . . . . . . 3 1 4 5 12 1 2 . . . Heat Flow Errors 8 | . . . . . . . 2 2 1 1 . 1 . 1 . Energy Discharges 9 | . . . . . . 2 1 1 . 2 2 1 . . . Parts Rejected 4 | . . . . . . . 2 . . 1 . 1 . . . Parts Fused 3 | . . . . . . . . 1 . 1 1 . . . . Data Loss (minor) 20 | . . . . . . 1 1 3 3 10 1 1 . . . Data Loss (major) 6 | . . . . . . . . 3 . 2 1 . . . . Misfires 8 | . . . . . . 1 . 1 1 3 1 1 . . . Alerts 4 | . . . . . . . 2 1 . 1 . . . . . Misdirections 1 | . . . . . . . . 1 . . . . . . . Weapon Failures 4 | . . . . . . 1 . 1 . 2 . . . . . Overload Shots . | . . . . . . . . . . . . . . . . Overflow Damage 1430 | . . . . 3 123 . 64 . 159 234 . 81 56 537 173 Projectiles 362 | . . . . . . . . . 30 4 . 81 . 124 123 Explosions 528 | . . . . 3 90 . 64 . . 38 . . 56 227 50 Melee 540 | . . . . . 33 . . . 129 192 . . . 186 . Knockbacks 29 | . . . . 1 . . . . 15 4 . . . 3 6 Impact 5 | . . . . 1 . . . . 1 3 . . . . . Kinetic 21 | . . . . . . . . . 11 1 . . . 3 6 Secondary 3 | . . . . . . . . . 3 . . . . . . Self-Inflicted Damage 476 | . 25 . . 60 124 . 37 . 10 . 25 . 93 95 7 Shots 14 | . 1 . . 2 4 . 2 . 1 . 1 . 1 1 1 Rammed 8 | . . . . 7 1 . . . . . . . . . . Targets Rammed 11 | . 1 . . 9 1 . . . . . . . . . . Kicked 1 | . 1 . . . . . . . . . . . . . . Crushed 2 | . . . . 2 . . . . . . . . . . . Highest Temperature 551 | . 6 . . 243 280 180 300 96 157 247 93 189 9 261 551 Average Temperature 79 | . 6 . . 73 70 53 148 46 45 68 23 51 6 68 148 Received Heat Transfer 2094 | . 24 6 . 96 702 390 . . 314 199 . 35 12 97 219 Effects 17 | . . . . . 2 . . . . . . . . 1 14 Shutdowns 1 | . . . . . . . . . . . . . . . 1 Energy Bleed 3 | . . . . . . . . . . . . . . 1 2 Interference 3 | . . . . . 2 . . . . . . . . . 1 Matter Decay 1 | . . . . . . . . . . . . . . . 1 Short Circuit 1 | . . . . . . . . . . . . . . . 1 Damage (minor) 1 | . . . . . . . . . . . . . . . 1 Damage (major) 7 | . . . . . . . . . . . . . . . 7 Siege Activations . | . . . . . . . . . . . . . . . . Martial Activations . | . . . . . . . . . . . . . . . . Shielding Activations . | . . . . . . . . . . . . . . . . Robots Disrupted . | . . . . . . . . . . . . . . . . Combat Hostiles . | . . . . . . . . . . . . . . . . Robots Corrupted 13 | . . . . . . . . . 2 5 2 1 . 1 2 Combat Hostiles 6 | . . . . . . . . . . 2 2 . . 1 1 Parts Fried 25 | . . . . . . . . . 2 9 3 5 1 2 3 Impact Corruptions 11 | . . . . . . . . . 6 5 . . . . . Robots Melted 4 | . . . . . 1 1 . . . . . . . 2 . Combat Hostiles 3 | . . . . . 1 1 . . . . . . . 1 . Parts Melted 23 | . . 1 . . 6 7 . . 1 . . 2 1 4 1 Heat Transferred 13584 | 50 50 . . 333 4218 3145 . . 350 1225 250 1900 150 1136 777 Parts Sabotaged . | . . . . . . . . . . . . . . . . Parts Stolen . | . . . . . . . . . . . . . . . . Parts Stripped . | . . . . . . . . . . . . . . . . Power Chain Reactions 10 | 1 1 . . . . . . . . 4 2 1 . 1 . Alert | -11 -10 -10 -10 -9 -8 -7 -7 -7 -6 -6 -6 -6 -6 -5 -4 ------- Run | Yrd Mat Min Exi Min Mat Fac Was Fac Fac Ext Cet Arc Hub Fac Fac Maximum Alert Level 4 | . . . . . 2 1 . . . 4 3 1 2 3 2 Low Security (%) 62 | 100 100 100 . 100 37 76 100 100 100 54 . 30 97 50 2 Level 1 21 | . . . . . 14 23 . . . 21 . 69 . 23 80 Level 2 13 | . . . . . 47 . . . . 14 76 . 2 14 17 Level 3 2 | . . . . . . . . . . 6 23 . . 12 . Level 4 . | . . . . . . . . . . 1 . . . . . Level 5 . | . . . . . . . . . . . . . . . . High Security . | . . . . . . . . . . . . . . . . Max Security . | . . . . . . . . . . . . . . . . Peak Influence 1162 | 10 66 84 . 154 690 312 86 81 93 1162 737 268 529 720 698 Initial 650 | . . 19 . . 39 312 59 2 13 10 650 264 47 259 352 Average 195 | 1 4 35 . 32 351 167 49 24 19 264 678 218 52 284 333 Influence Increases 7502 | 30 77 65 . 373 1294 349 65 167 297 1861 162 170 613 987 992 Destroy 0b10 Robot/C 3300 | . 40 40 . 240 680 160 . 80 140 920 80 80 40 360 440 Destroy 0b10 Robot/NC 485 | 30 5 . . 20 120 55 . 5 20 55 10 45 35 65 20 Destroy Leader 692 | . 10 10 . 40 178 68 . 20 34 134 . . 20 86 92 Allied During Kill 627 | . . . . 12 . . . . . 615 . . . . . Successful Hack 152 | . . . . . 21 . . 48 8 15 . . . 36 24 Disable Machine 855 | . . . . . 105 15 . . 60 60 30 30 255 150 150 Anti-Garrison Action 150 | . . . . . . . . . . . . . 150 . . Destroy Structure 956 | . 22 15 . 61 70 6 65 14 5 62 12 15 113 260 236 Partial Spotted 75 | . . . . . 15 15 . . 15 . . . . 30 . Lose Combat Pursuer 210 | . . . . . 105 30 . . 15 . 30 . . . 30 Influence Decreases 6804 | 30 27 115 . 270 710 865 232 143 303 721 662 696 220 796 1014 Entered New Map 2248 | . . 31 . . 64 375 112 2 15 12 512 398 89 270 368 Time Decay 3917 | 30 27 84 . 270 487 440 120 141 278 449 140 278 131 486 556 Lost Part 360 | . . . . . 140 50 . . 10 . 10 20 . 40 90 Lost Ally 279 | . . . . . 19 . . . . 260 . . . . . Squads Dispatched 45 | . 1 . . 1 9 2 . 2 3 9 . . 3 8 7 Investigation 12 | . . . . 1 5 . . 1 . 3 . . . 1 1 Extermination 9 | . . . . . . 1 . 1 2 . . . . 2 3 Reinforcement 16 | . 1 . . . 1 1 . . 1 4 . . 1 4 3 Assault 7 | . . . . . 2 . . . . 2 . . 2 1 . Garrison 1 | . . . . . 1 . . . . . . . . . . Intercept . | . . . . . . . . . . . . . . . . Searches Triggered . | . . . . . . . . . . . . . . . . Construction Impeded 8 | . . . . . 1 . . . . 3 . . 1 2 1 Haulers Reinforced 3 | . . . . . . . . . 1 . . . . 1 1 Active Scanning Responses . | . . . . . . . . . . . . . . . . Cargo Convoy Interrupts 1 | . . . . . . 1 . . . . . . . . . Stealth | -11 -10 -10 -10 -9 -8 -7 -7 -7 -6 -6 -6 -6 -6 -5 -4 --------- Run | Yrd Mat Min Exi Min Mat Fac Was Fac Fac Ext Cet Arc Hub Fac Fac Distress Signals 5 | . . . . . 1 . . . . 3 . . . . 1 Communications Jammed . | . . . . . . . . . . . . . . . . Distress Signals . | . . . . . . . . . . . . . . . . Times Spotted 269 | . 7 3 . 15 47 17 5 5 15 54 9 27 4 26 35 Peak Tracking Total 11 | . 2 3 . 4 7 2 2 3 5 11 5 2 9 5 6 Tactical Retreats 12 | . . . . . 6 2 . . 1 . 1 . . . 2 Traps | -11 -10 -10 -10 -9 -8 -7 -7 -7 -6 -6 -6 -6 -6 -5 -4 ------- Run | Yrd Mat Min Exi Min Mat Fac Was Fac Fac Ext Cet Arc Hub Fac Fac Traps Triggered 12 | . . 1 . . 3 3 . . 1 3 . . . . 1 Indirectly . | . . . . . . . . . . . . . . . . Trap Hack Attempts . | . . . . . . . . . . . . . . . . Triggered . | . . . . . . . . . . . . . . . . Disarmed . | . . . . . . . . . . . . . . . . Reprogrammed . | . . . . . . . . . . . . . . . . Reused . | . . . . . . . . . . . . . . . . Traps Extracted . | . . . . . . . . . . . . . . . . Installed . | . . . . . . . . . . . . . . . . Triggered . | . . . . . . . . . . . . . . . . Machines | -11 -10 -10 -10 -9 -8 -7 -7 -7 -6 -6 -6 -6 -6 -5 -4 ---------- Run | Yrd Mat Min Exi Min Mat Fac Was Fac Fac Ext Cet Arc Hub Fac Fac Machines Disabled 62 | . 1 . . . 7 1 . . 4 7 2 2 18 10 10 Max in Single Turn 17 | . 1 . . . 1 1 . . 1 1 1 1 17 4 2 Garrison Access 3 | . . . . . . . . . 1 . . . 1 . 1 Network Hub 1 | . . . . . . . . . . . . . 1 . . Energy Cycler 1 | . . . . . . . . . . 1 . . . . . Machines Repaired . | . . . . . . . . . . . . . . . . Machines Dismantled . | . . . . . . . . . . . . . . . . Machines Sabotaged . | . . . . . . . . . . . . . . . . Overloaded Fab Kills . | . . . . . . . . . . . . . . . . Hacking | -11 -10 -10 -10 -9 -8 -7 -7 -7 -6 -6 -6 -6 -6 -5 -4 --------- Run | Yrd Mat Min Exi Min Mat Fac Was Fac Fac Ext Cet Arc Hub Fac Fac Machines Accessed 50 | . . 1 1 1 9 2 . 4 6 14 1 . 1 5 5 Terminals 33 | . . . . 1 7 1 . 3 1 14 1 . 1 2 2 Fabricators 2 | . . . . . . . . . 1 . . . . 1 . Repair Stations 5 | . . . . . 1 . . . 2 . . . . 1 1 Recycling Units 3 | . . . . . . 1 . 1 1 . . . . . . Scanalyzers 1 | . . . . . . . . . . . . . . 1 . Garrison Access 4 | . . . . . 1 . . . 1 . . . . . 2 Total Hacks 170 | . . 1 1 2 28 4 . 9 35 36 2 . 1 24 27 Successful 77 | . . 1 1 . 10 1 . 3 27 12 1 . . 12 9 Failed 93 | . . . . 2 18 3 . 6 8 24 1 . 1 12 18 Catastrophic 16 | . . . . 1 3 1 . 1 . 5 . . 1 3 1 Database Lockouts . | . . . . . . . . . . . . . . . . Manual 55 | . . . . 2 18 . . 7 4 13 . . 1 6 4 Terminals 97 | . . . . 2 22 3 . 7 3 36 2 . 1 9 12 Fabricators 7 | . . . . . . . . . 3 . . . . 4 . Repair Stations 39 | . . . . . 3 . . . 25 . . . . 2 9 Recycling Units 5 | . . . . . . 1 . 2 2 . . . . . . Scanalyzers 9 | . . . . . . . . . . . . . . 9 . Garrison Access 11 | . . . . . 3 . . . 2 . . . . . 6 Terminal Hacks 25 | . . 1 1 . 3 . . . . 11 1 . . 3 5 Record 1 | . . . 1 . . . . . . . . . . . . Robot Schematic 2 | . . . . . . . . . . 1 . . . 1 . Prototype ID Bank 1 | . . . . . . . . . . . . . . 1 . Open Door 9 | . . 1 . . . . . . . 7 1 . . . . Branch Access Points 1 | . . . . . . . . . . . . . . . 1 Machine Index 1 | . . . . . . . . . . . . . . 1 . Terminal Index 1 | . . . . . . . . . . . . . . . 1 Alert Level 2 | . . . . . . . . . . 1 . . . . 1 Locate Traps 2 | . . . . . . . . . . 1 . . . . 1 Hauler Manifests 2 | . . . . . 1 . . . . . . . . . 1 Zone Layout 3 | . . . . . 2 . . . . 1 . . . . . Fabricator Hacks 2 | . . . . . . . . . 1 . . . . 1 . Network Status 1 | . . . . . . . . . 1 . . . . . . Load Schematic 1 | . . . . . . . . . . . . . . 1 . Repair Station Hacks 29 | . . . . . 2 . . . 22 . . . . 2 3 Scan Component 15 | . . . . . 1 . . . 11 . . . . 1 2 Repair 14 | . . . . . 1 . . . 11 . . . . 1 1 Recycling Unit Hacks 4 | . . . . . . 1 . 1 2 . . . . . . Report Inventory 3 | . . . . . . 1 . 1 1 . . . . . . Retrieve Components 1 | . . . . . . . . . 1 . . . . . . Scanalyzer 6 | . . . . . . . . . . . . . . 6 . Insert Component 1 | . . . . . . . . . . . . . . 1 . Analyze 5 | . . . . . . . . . . . . . . 5 . Garrison Access Hacks 2 | . . . . . . . . . 1 . . . . . 1 Seal Access 2 | . . . . . . . . . 1 . . . . . 1 Unauthorized Hacks 9 | . . . . . 5 . . 2 1 1 . . . . . Terminals 7 | . . . . . 5 . . 1 . 1 . . . . . Track 2 | . . . . . 1 . . . . 1 . . . . . Botnet 3 | . . . . . 2 . . 1 . . . . . . . Operators 2 | . . . . . 2 . . . . . . . . . . Fabricators 1 | . . . . . . . . . 1 . . . . . . Haulers 1 | . . . . . . . . . 1 . . . . . . Repair Stations . | . . . . . . . . . . . . . . . . Recycling Units 1 | . . . . . . . . 1 . . . . . . . Recyclers 1 | . . . . . . . . 1 . . . . . . . Scanalyzers . | . . . . . . . . . . . . . . . . Garrison Access . | . . . . . . . . . . . . . . . . Data Cores Recovered 2 | . . . . . 1 . . . . . . . 1 . . Used 1 | . . . . . 1 . . . . . . . . . . Hacking Detections 38 | . . . . 1 8 2 . 4 3 9 . . 1 5 5 Full Trace Events 11 | . . . . 1 4 . . 1 . 3 . . . 1 1 Feedback Events . | . . . . . . . . . . . . . . . . Feedback Blocked 1 | . . . . . . . . . . 1 . . . . . Robot Schematics Acquired 2 | . . . . . . . . . . 1 . . . 1 . Robots Built . | . . . . . . . . . . . . . . . . Authchips . | . . . . . . . . . . . . . . . . Time . | . . . . . . . . . . . . . . . . Total Robot Build Rating . | . . . . . . . . . . . . . . . . Part Schematics Acquired 1 | . . . . . . . . . . . . . . 1 . Parts Built . | . . . . . . . . . . . . . . . . Authchips . | . . . . . . . . . . . . . . . . Time . | . . . . . . . . . . . . . . . . Total Part Build Rating . | . . . . . . . . . . . . . . . . Parts Repaired 13 | . . . . . 1 . . . 10 . . . . 1 1 Time 544 | . . . . . 26 . . . 456 . . . . 37 25 Parts Recycled . | . . . . . . . . . . . . . . . . Recycled Matter . | . . . . . . . . . . . . . . . . Retrieved Matter . | . . . . . . . . . . . . . . . . Retrieved Components 7 | . . . . . . . . . 7 . . . . . . Parts Scanalyzed 1 | . . . . . . . . . . . . . . 1 . Part Schematics Acquired 1 | . . . . . . . . . . . . . . 1 . Parts Damaged . | . . . . . . . . . . . . . . . . Bothacking | -11 -10 -10 -10 -9 -8 -7 -7 -7 -6 -6 -6 -6 -6 -5 -4 ------------ Run | Yrd Mat Min Exi Min Mat Fac Was Fac Fac Ext Cet Arc Hub Fac Fac Used RIF Installer . | . . . . . . . . . . . . . . . . Robots Hacked . | . . . . . . . . . . . . . . . . Non-combat . | . . . . . . . . . . . . . . . . Combat . | . . . . . . . . . . . . . . . . Robot Hacks Applied . | . . . . . . . . . . . . . . . . Relay Couplers Released 2 | . . . . . . 1 . . . . . . 1 . . Machine Destruction 2 | . . . . . . 1 . . . . . . 1 . . Fabnet Peak Effective % . | . . . . . . . . . . . . . . . . Robots Rewired 12 | . . . . . . . . . . 12 . . . . . Allies Hacked . | . . . . . . . . . . . . . . . . Hacks Repelled . | . . . . . . . . . . . . . . . . Allies | -11 -10 -10 -10 -9 -8 -7 -7 -7 -6 -6 -6 -6 -6 -5 -4 -------- Run | Yrd Mat Min Exi Min Mat Fac Was Fac Fac Ext Cet Arc Hub Fac Fac Total Allies 26 | . . 1 . 3 . . 1 . . 21 . . . . . Largest Group 15 | . . 1 1 2 1 . 1 . . 15 . . . . . Highest-Rated Group 472 | . . 31 31 47 16 . 31 . . 472 . . . . . Highest-Rated Ally 159 | . . 31 31 31 16 . 31 . . 159 . . . . . Total Orders 1 | . . . . . . . . . . 1 . . . . . AID 1 | . . . . . . . . . . 1 . . . . . Ally Attacks 251 | . . . . 7 . . 20 . . 224 . . . . . Total Damage 5174 | . . . . 83 . . 358 . . 4733 . . . . . Kills 40 | . . . . . . . . . . 40 . . . . . Allies Corrupted 1 | . . . . . . . . . . 1 . . . . . Allies Melted . | . . . . . . . . . . . . . . . . Intel | -11 -10 -10 -10 -9 -8 -7 -7 -7 -6 -6 -6 -6 -6 -5 -4 ------- Run | Yrd Mat Min Exi Min Mat Fac Was Fac Fac Ext Cet Arc Hub Fac Fac Active Infowar (turns) 12442 | 112 586 210 486 1434 1694 808 253 401 1326 1020 298 606 299 1279 1630 Optics 5035 | . . . . . . 511 . . . 412 298 606 299 1279 1630 IFF 791 | . . . . . . . . . . . . . . 365 426 Terrain 1271 | 112 32 . . . . . . . 322 . . . . 805 . Structural 3904 | . . . . . 945 520 . . 875 607 . . . . 957 Seismic 8814 | . 554 210 486 1434 963 680 253 401 1296 608 . 48 299 636 946 T.N.C. 1404 | . . . . . 1357 47 . . . . . . . . . Jamming 376 | . . . . . . . . . . . . . . . 376 Robot Analysis Total . | . . . . . . . . . . . . . . . . Derelict Logs Recovered 1 | . . . . 1 . . . . . . . . . . . Drone Launches . | . . . . . . . . . . . . . . . . Drone Recoveries . | . . . . . . . . . . . . . . . . Exploration | -11 -10 -10 -10 -9 -8 -7 -7 -7 -6 -6 -6 -6 -6 -5 -4 ------------- Run | Yrd Mat Min Exi Min Mat Fac Was Fac Fac Ext Cet Arc Hub Fac Fac Turns Passed 13615 | 184 586 210 486 1485 1699 1097 253 431 1520 1552 298 606 299 1279 1630 Spaces Moved 6161 | 103 293 137 201 576 836 522 124 239 540 802 158 235 146 604 645 Core 3 | 3 . . . . . . . . . . . . . . . Treads 1004 | . 69 44 201 576 114 . . . . . . . . . . Legs 300 | 100 200 . . . . . . . . . . . . . . Wheels 4853 | . 24 93 . . 722 522 124 239 540 802 158 235 146 604 644 Hover . | . . . . . . . . . . . . . . . . Flight 1 | . . . . . . . . . . . . . . . 1 Fastest Speed 50 | 50 100 100 240 240 115 135 145 145 145 160 160 160 160 160 175 Average Speed 165 | 117 127 137 240 240 143 148 145 149 156 161 160 171 160 163 177 Slowest Speed 840 | 120 160 240 240 240 240 190 145 160 160 175 160 175 175 175 840 Overloaded Moves . | . . . . . . . . . . . . . . . . Propulsion Burnouts . | . . . . . . . . . . . . . . . . Robots Hopped . | . . . . . . . . . . . . . . . . Potential Cave-ins 2 | . . . . . . . . . . . . . . 2 . Cave-ins Triggered . | . . . . . . . . . . . . . . . . Exploration Rate (%) 43 | 5 30 41 54 84 62 11 83 11 16 86 70 88 15 21 17 Regions Visited 15 Branch Regions 7 Pre-discovered Areas 2 | . . 1 1 . . . . . . . . . . . . Known Exits Taken . | . . . . . . . . . . . . . . . . Unknown Exits Taken 13 | 1 1 1 1 1 1 . . 1 1 1 1 1 1 1 . Scrap Searched 5 | . . 3 . 2 . . . . . . . . . . . Spaces Dug 75 | . . 10 . . 23 4 . 3 . . . 3 7 8 17 Terrain Destroyed 954 | . 22 24 . 89 82 4 216 19 5 38 19 18 141 155 122 Melee 17 | . . . . . . 4 . 3 . . . . 1 6 3 Projectile 83 | . . . . . 2 . . . 5 7 1 14 8 15 31 AOE 854 | . 22 24 . 89 80 . 216 16 . 31 18 4 132 134 88 Terrain Rammed . | . . . . . . . . . . . . . . . . Walls Destroyed . | . . . . . . . . . . . . . . . . Machines Disabled . | . . . . . . . . . . . . . . . . Actions | -11 -10 -10 -10 -9 -8 -7 -7 -7 -6 -6 -6 -6 -6 -5 -4 --------- Run | Yrd Mat Min Exi Min Mat Fac Was Fac Fac Ext Cet Arc Hub Fac Fac Total 8457 | 136 487 155 206 616 1120 699 154 289 1124 980 183 349 184 789 986 Wait 994 | . 165 . . . 56 17 . . 474 22 1 27 3 50 179 Move 6148 | 102 292 136 200 576 835 522 123 238 539 801 157 234 145 603 645 Hop . | . . . . . . . . . . . . . . . . Pick Up 134 | 8 5 4 6 2 25 16 2 7 18 7 1 2 2 16 13 Fast Attach 86 | 7 . 1 . . 20 10 1 5 8 8 5 4 4 8 5 Attach 51 | . 1 . . . 11 5 1 1 8 2 . 3 . 8 11 Detach 24 | . . . . . 4 3 . 3 1 1 . 2 . 4 6 Swap 191 | . 6 7 . 3 23 14 4 10 18 17 7 8 8 24 42 Drop 128 | . 5 4 . . 27 20 2 12 12 12 3 . 6 14 11 Fire 530 | 19 12 2 . 27 85 64 21 10 44 34 9 69 14 49 71 Melee 72 | . . . . . 33 12 . 3 2 4 . . 2 13 3 Ram . | . . . . . . . . . . . . . . . . Kick 1 | . 1 . . . . . . . . . . . . . . Crush 9 | . . . . 8 1 . . . . . . . . . . Escape Stasis 40 | . . . . . . 16 . . . 24 . . . . . Rewire 49 | . . 1 . . . . . . . 48 . . . . . Trap . | . . . . . . . . . . . . . . . . Miscellaneous . | . . . . . . . . . . . . . . . . Route ------- -11/Scrapyard -10/Materials -10/Mines (discovered 2 exits: [*Mat] / *Exi) -10/Exiles -9/Mines (discovered 2 exits: *Mat x2) -8/Materials -7/Factory -7/Waste -7/Factory -6/Factory -6/Extension (discovered 2 exits: *Fac / *Cet) -6/Cetus -6/Archives (discovered 3 exits: *Fac / *Hub x2) -6/Hub_04(d) -5/Factory -4/Factory (discovered 3 exits: [*Res] / Upp x2) History --------- Turn | Location | Event 18 | -11/Scrapyard | Discovered new exit (range 14) 185 | -11/Scrapyard | Entered Materials 303 | -10/Materials | Build established: Mutant 374 | -10/Materials | Discovered new exit (range 5) 771 | -10/Materials | Entered Mines 780 | -10/Mines | Escorted by a lone wolf Derelict 803 | -10/Mines | Learned location of Storage (-8) 845 | -10/Mines | Assembled infested the area 878 | -10/Mines | Met a Derelict who couldn't figure out how to use a Trap Extractor 913 | -10/Mines | Discovered new exit (range 8) 971 | -10/Mines | Deemed a non-threat by the Exiles lab entrance 971 | -10/Mines | Discovered new exit (range 5) 981 | -10/Mines | Entered Exiles 981 | -10/Exiles | Accompanied by 1 ally 1039 | -10/Exiles | Met 8R-AWN 1077 | -10/Exiles | Met EX-HEX 1217 | -10/Exiles | Met EX-DEC 1260 | -10/Exiles | Learned location of Zion (-6) 1441 | -10/Exiles | Discovered new exit (range 14) 1467 | -10/Exiles | Entered Mines 1547 | -9/Mines | Found a Scrap Suit stashed away for nefarious purposes 1551 | -9/Mines | Found Scrap Suit 2077 | -9/Mines | Received a Mining Laser from a helpful Derelict 2083 | -9/Mines | Discovered new exit (range 8) 2107 | -9/Mines | Learned Materials stockpile data 2908 | -9/Mines | Discovered new exit (range 14) 2952 | -9/Mines | Entered Materials 2952 | -8/Materials | Accompanied by 1 ally 2952 | -8/Materials | Evolved 4 slots: Utility x3, Weapon x1 3435 | -8/Materials | Garrison activated, responded to threat 3708 | -8/Materials | Destroyed 7 combat bots 3813 | -8/Materials | Discovered new exit (range 14) 4152 | -8/Materials | First assault squad dispatched 4213 | -8/Materials | Core integrity fell below 50% 4257 | -8/Materials | Lost 3 parts (1p1n1u) 4285 | -8/Materials | Repaired Huge Storage Unit? 4614 | -8/Materials | Build established: Scavenger-Tank 4651 | -8/Materials | Entered Factory 4651 | -7/Factory | Evolved 2 slots: Utility x2 4997 | -7/Factory | Build established: Scavenger-Mutant 5550 | -7/Factory | Lost 4 parts (1p1n2u) 5641 | -7/Factory | Build established: Mutant 5684 | -7/Factory | Cargo convoy interrupted 5748 | -7/Factory | Sucked down chute 5748 | -7/Factory | Entered Waste 5749 | -7/Waste | Met a frightened Derelict 5763 | -7/Waste | EMP discharged 5775 | -7/Waste | Spotted C-40 Crusher 5778 | -7/Waste | Destroyed C-40 Crusher 5791 | -7/Waste | Spotted C-40 Crusher 5795 | -7/Waste | Destroyed C-40 Crusher 5809 | -7/Waste | Found Damper Plating 5813 | -7/Waste | Spotted C-40 Crusher 5814 | -7/Waste | Destroyed C-40 Crusher 5817 | -7/Waste | Spotted C-40 Crusher 5827 | -7/Waste | Spotted C-40 Crusher 5830 | -7/Waste | Destroyed C-40 Crusher 5854 | -7/Waste | Destroyed C-40 Crusher 5863 | -7/Waste | EMP discharged 5863 | -7/Waste | System corruption reached 10% 5871 | -7/Waste | Spotted C-40 Crusher 5892 | -7/Waste | Destroyed C-40 Crusher 5917 | -7/Waste | Discovered new exit (range 16) 5954 | -7/Waste | Build established: Scavenger-Mutant 5963 | -7/Waste | EMP discharged 6001 | -7/Waste | Entered Factory 6344 | -7/Factory | Discovered new exit (range 16) 6373 | -7/Factory | Build established: Hacker-Mutant 6432 | -7/Factory | Entered another Factory area 6432 | -6/Factory | Evolved 2 slots: Utility x2 6948 | -6/Factory | Repaired Hvy. Rocket Launcher 7438 | -6/Factory | Repaired Deuterium Engine 7478 | -6/Factory | Repaired Hrd. Medium Armor Plating 7523 | -6/Factory | Repaired Arm. Huge Wheel 7605 | -6/Factory | Repaired Cld. Plasma Cannon 7656 | -6/Factory | Repaired Hpw. Shock Rifle 7683 | -6/Factory | Repaired Structural Scanner 7711 | -6/Factory | Repaired Seismic Detector 7751 | -6/Factory | Repaired Assault Cannon 7802 | -6/Factory | Repaired Imp. Heavy Armor Plating 7915 | -6/Factory | Discovered new exit (range 16) 7952 | -6/Factory | Entered Extension 8042 | -6/Extension | Rescued a captive Derelict 8154 | -6/Extension | Rescued a captive Derelict 8155 | -6/Extension | Rescued a captive Derelict 8235 | -6/Extension | Rescued a captive Derelict 8261 | -6/Extension | Rescued A7 8349 | -6/Extension | Rescued a captive Derelict 8733 | -6/Extension | Build established: Hacker-Tank 8776 | -6/Extension | Spotted B-75 Beast 8787 | -6/Extension | Spotted B-75 Beast 8797 | -6/Extension | Allies destroyed B-75 Beast 8807 | -6/Extension | Allies destroyed B-75 Beast 8827 | -6/Extension | Disrupted transfer network 8886 | -6/Extension | Rescued a captive Derelict 8961 | -6/Extension | Energy Cycler disabled 8962 | -6/Extension | Rescued a captive Derelict 8962 | -6/Extension | Rescued a captive Derelict 9234 | -6/Extension | Extracted ID and sensor layout for unrecognized location from A7's data core 9352 | -6/Extension | First assault squad dispatched 9447 | -6/Extension | Discovered new exit (range 10) 9448 | -6/Extension | Lost 10 allies 9449 | -6/Extension | Discovered new exit (range 6) 9501 | -6/Extension | Disrupted transfer network 9504 | -6/Extension | Entered Cetus 9514 | -6/Cetus | Lost 4 allies 9525 | -6/Cetus | Spotted Cetus Guard 9525 | -6/Cetus | Spotted Cetus Guard 9525 | -6/Cetus | Spotted Cetus Guard 9525 | -6/Cetus | Spotted Cetus Guard 9533 | -6/Cetus | Destroyed Cetus Guard 9535 | -6/Cetus | Destroyed Cetus Guard 9535 | -6/Cetus | Destroyed Cetus Guard 9542 | -6/Cetus | Destroyed Cetus Guard 9691 | -6/Cetus | Discovered new exit (range 21) 9702 | -6/Cetus | Cetus Manufacturing Module disabled 9767 | -6/Cetus | Spotted Cetus Guard 9767 | -6/Cetus | Spotted Cetus Guard 9767 | -6/Cetus | Spotted Cetus Guard 9767 | -6/Cetus | Spotted Cetus Guard 9802 | -6/Cetus | Entered Archives 10008 | -6/Archives | Unable to access archive contents 10034 | -6/Archives | Discovered new exit (range 20) 10130 | -6/Archives | Discovered new exit (range 22) 10175 | -6/Archives | Discovered new exit (range 21) 10408 | -6/Archives | Entered Hub_04(d) 10408 | -6/Hub_04(d) | Spotted B-75 Beast 10433 | -6/Hub_04(d) | Destroyed B-75 Beast 10596 | -6/Hub_04(d) | Discovered new exit (range 18) 10701 | -6/Hub_04(d) | Network Hub disabled 10707 | -6/Hub_04(d) | Entered Factory 10707 | -5/Factory | Evolved 2 slots: Utility x2 10748 | -5/Factory | Build established: Hacker-Mutant 11403 | -5/Factory | Repaired Quantum Reactor 11466 | -5/Factory | Spotted B-75 Beast 11587 | -5/Factory | Lost 3 parts (2u1w) 11772 | -5/Factory | Discovered new exit (range 13) 11907 | -5/Factory | First assault squad dispatched 11986 | -5/Factory | Entered another Factory area 11986 | -4/Factory | Evolved 2 slots: Power x1, Utility x1 12102 | -4/Factory | Build established: Scavenger-Mutant 12387 | -4/Factory | Repaired Adv. Terrain Scanner 12440 | -4/Factory | Spotted B-86 Titan 12595 | -4/Factory | Build established: Scavenger-Tank 13064 | -4/Factory | Build established: Scavenger-Mutant 13155 | -4/Factory | Identified exit to Upper Caves 13230 | -4/Factory | Discovered new exit (range 19) 13523 | -4/Factory | Lost 4 parts (1n2u1w) 13616 | -4/Factory | Self-destructed Last Messages --------------- 13567_ Destroyed Lgt. Antimatter Reactor. 13569_ U-05 Engineer builds a Door. 13571_ Destroyed Wheel. 13572_ K-01 Serf collects debris. 13573_ ALERT: Construction progress impeded, dispatching reinforcements to local area. 13575_ K-01 Serf collects debris. 13600_ U-05 Engineer lays Concrete. 13602_ K-01 Serf collects debris. 13602_ U-05 Engineer lays Concrete. 13604_ U-05 Engineer builds a Wall. 13606_ K-01 Serf collects debris. 13607_ G-67 Veteran destroyed. 13608_ U-05 Engineer builds a Wall. 13609_ K-01 Serf collects debris. 13609_ G-67 Veteran Adv. Heat Sink blasted off. 13611_ Slug penetrates G-67 Veteran. 13612_ K-01 Serf collects debris. 13613_ U-05 Engineer lays Concrete. 13616_ K-01 Serf collects debris. Map ----- +----------------------------------------------------+ | ??## ##??# ! #??######+## #???????????????? | | #??## ##??# #??# # #???????????????? | | #??## ##??#########+#### | / /???????????????? | | ???## ##????????# ## # #???????????????? | | ???## ##????????# #########" #############???? | | ???## ##????????# ###;;;#?## ## """"""" #???? | | ???## ##????????# % ;## # """"""" #???? | | ???## ##???????## % | # """"""" #???? | | ???## ##?????### "" !%### # " """"" #???? | | ???## ##?????# ## T"" =*#?## ## #???? | | ???## ##?????# % !;??# ## #???? | | ???## ##?????# k [#?## #####"#######???? | | ???## ##??####" g%#?# ### #????????? | | ???## ##### #### % g#?# #????????? | | ???## ### # #?# ### #????????? | | ???## #### # % ####+##### ##????????? | | ???## ### + + ###="#????????? | | ???## ## #% # ##" ##????????? | | ???## ## # # """ ###]#?????????? | | ???## ### # # """ ##% #?????????? | | ???## ## ## ; + """ +%% #?????????? | | ???## ## # ! ;## #"# #?????????? | | ???## # # ;##########" #?????????? | | ???## # # w ###???????## #?????????? | | ???## ## # ]###????????# #?????????? | | ???## # # ^ @ ##????????# #?????????? | | ?#### # +% ##????????#=#?????????? | | ##### # # ##????????#%#?????????? | | ###"" # # ^ ;########?#%#?????????? | | !# ## ###########*#########?? | | # ## # # | | # ###########^ | | # | | """ # ##########"########??? | | """ + ; ""G"" #???????? | | """ # # "" "" #???????? | | # = ; #???????? | | """ + = ; """"""""" #???????? | | """ ##### # #???????? | | """ ##### = %##"####+######???????? | | ##### * #######????? | | ######### = ! + """ | | """ """ # *%[ #######????? | | """ """ # """ ""= ! % = ##??????????? | | """ """ # """ "" " #???????????? | | # """ "" "" "" #???????????? | | ! + """ """ "" """ ?????????? | | ! # """ """ """ ########????????? | | # #???????????????? | | # "" "" "" #???????????????? | +----------------------------------------------------+ Best States ------------- Heat Dissipation 70 Energy Generation 38 Energy Capacity 600 Matter Stores 500 Matter Capacity 500 Sight Range 22 Terrain Scan Range 20 Terrain Scan Density 85 Jamming Range 16 EM Shielding 3 Armor Coverage 825 Resistance: KI 20 Resistance: TH 25 Evasion (%) 55 Targeting Accuracy 8 Recoil Reduction 6 Particle Charging 20 Offensive Hacking 36 Defensive Hacking 20 Item Schematics ----------------- Centrium Medium Armor Plating | -5/Factory | Scanalyzed Robot Schematics ------------------ G-50 Soldier | -6/Extension | Hacked X-72 Disruptor | -5/Factory | Hacked Fabricated ------------ Nothing Repaired ---------- Huge Storage Unit | 20% | -8/Materials Hvy. Rocket Launcher | 71% | -6/Factory Deuterium Engine | 10% | -6/Factory Hrd. Medium Armor Plating | 7% | -6/Factory Arm. Huge Wheel | 64% | -6/Factory Cld. Plasma Cannon | 62% | -6/Factory Hpw. Shock Rifle | 69% | -6/Factory Structural Scanner | 5% | -6/Factory Seismic Detector | 10% | -6/Factory Assault Cannon | 50% | -6/Factory Imp. Heavy Armor Plating | 93% | -6/Factory Quantum Reactor | 45% | -5/Factory Adv. Terrain Scanner | 16% | -4/Factory Alien Tech Used ----------------- None Achievements -------------- None Challenges ------------ None Game ------ Seed WardroneFortressExoskeleton Manual? 0 Play Time 01:59:29 Cumulative 237.3 hours Start 2025.09.10 @ 20:09:41 End 2025.09.12 @ 12:45:45 Sessions 9 Manual Loads 0 Difficulty Rogue Special Mode None Game No. 245 Rogue 245 Adventurer 0 Explorer 0 Win Type - Total 3 Types 3/0/0/0/0/0/0/0/0/0 Lore% 74 Gallery% 70 Achievement% 66 Wizard Run 0 Options --------- Layout 2 ASCII 0 Keyboard 1 Movement Vi Keybinds 0 Fullscreen 2 Font 24/Terminus Map View 50x44 Zoom Use 0% Tactical HUD 1 Map Filters NONE Filters NONE Steam X RUN: 6a253f85-158d-402e-95b2-cde1d11a1718